[Event "CZE-tht Extraliga 2018-19"]
[Site "Czech Republic"]
[Date "2019.02.10"]
[Round "8.3"]
[White "Rasik, Vitezslav"]
[Black "Vykouk, Jan"]
[Result "1-0"]
[ECO "C00"]
[WhiteElo "2456"]
[BlackElo "2438"]
[Annotator "ChessBase"]
[PlyCount "94"]
[EventDate "2018.11.03"]
[EventType "team-tourn"]
[EventCountry "CZE"]
[SourceTitle "playchess.com"]
[Source "ChessBase"]
[SourceQuality "1"]
[WhiteTeam "Ostrava"]
[BlackTeam "Turnov"]
[TimeControl "40/5400+30:1800+30"]

1. e4 {[%emt 0:00:00]} e6 {[%emt 0:00:00]} 2. d3 {[%emt 0:00:07]} c5 {[%emt 0:00:00]} 3. Nf3 {[%emt 0:00:17]} Nc6 {[%emt 0:00:06]} 4. g3 {[%emt 0:00:29]} g6 {[%emt 0:00:09]} 5. Bg2 {[%emt 0:00:29]} Bg7 {[%emt 0:00:07]} 6. O-O {[%emt 0:00:16]} Nge7 {[%emt 0:00:08]} 7. c3 {[%emt 0:03:03]} O-O {[%emt 0:02:16]} 8. Nbd2 {[%emt 0:11:49]} b6 {[%emt 0:00:44]} 9. Re1 {[%emt 0:01:55]} Ba6 {[%emt 0:02:04]} 10. Nb3 {[%emt 0:11:42]} Rc8 {[%emt 0:01:00]} 11. d4 {[%emt 0:06:13]} cxd4 {[%emt 0:02:03]} 12. Nbxd4 {[%emt 0:03:22]} Nxd4 {[%emt 0:02:16]} 13. Nxd4 {[%emt 0:08:12]} Nc6 {[%emt 0:03:26]} 14. Nxc6 {[%emt 0:07:07]} dxc6 {[%emt 0:00:17]} 15. Qxd8 {[%emt 0:01:15]} Rfxd8 {[%emt 0:00:09]} 16. Bg5 {[%emt 0:00:24]} f6 {[%emt 0:00:43]} 17. Be3 {[%emt 0:00:47]} Kf7 {[%emt 0:00:51]} 18. a4 {[%emt 0:06:56]} Bd3 {[%emt 0:00:09]} 19. a5 {[%emt 0:01:16]} bxa5 {[%emt 0:00:06]} 20. Bxa7 {[%emt 0:03:56]} Bc4 {[%emt 0:07:57]} 21. Bf1 {[%emt 0:06:50]} Bxf1 {[%emt 0:03:36]} 22. Kxf1 {[%emt 0:00:11]} Ra8 {[%emt 0:01:43]} 23. Rxa5 {[%emt 0:01:04]} Rd7 {[%emt 0:00:02]} 24. Rea1 {[%emt 0:02:03]} Rd2 {[%emt 0:00:07]} 25. b4 {[%emt 0:08:44]} f5 {[%emt 0:04:12]} 26. Be3 {[%emt 0:02:37]} Rxa5 {[%emt 0:00:39]} 27. bxa5 {[%emt 0:00:09]} Rd8 {[%emt 0:00:05]} 28. a6 {[%emt 0:03:09]} Bxc3 {[%emt 0:00:12]} 29. Rc1 {[%emt 0:04:02]} Bd4 {[%emt 0:01:37]} 30. Bxd4 {[%emt 0:00:25]} Rxd4 {[%emt 0:00:04]} 31. exf5 {[%emt 0:00:25]} gxf5 {[%emt 0:01:12]} 32. Rxc6 {[%emt 0:02:24]} h5 {[%emt 0:00:12]} 33. a7 {[%emt 0:01:02]} Ra4 {[%emt 0:00:03]} 34. Rc7+ {[%emt 0:00:03]} Kf6 {[%emt 0:00:04]} 35. Ke2 {[%emt 0:01:18]} Ra3 {[%emt 0:00:19]} 36. f4 {[%emt 0:02:46]} h4 {[%emt 0:01:20]} 37. Kd2 {[%emt 0:00:55]} hxg3 {[%emt 0:00:29]} 38. hxg3 {[%emt 0:00:07]} Kg6 {[%emt 0:00:07]} 39. Kc2 {[%emt 0:00:39]} Kh5 {[%emt 0:00:32]} 40. Rh7+ {[%emt 0:00:47]} Kg4 {[%emt 0:01:52]} 41. Rg7+ {[%emt 0:02:03]} Kf3 {[%emt 0:00:14]} 42. Kb2 {[%emt 0:00:30]} Ra6 {[%emt 0:00:05]} 43. Kc3 {[%emt 0:01:20]} Ke4 {[%emt 0:00:14]} 44. Kc4 {[%emt 0:00:28]} Ra1 {[%emt 0:01:25]} 45. Kc5 {[%emt 0:00:39]} Rc1+ {[%emt 0:00:30]} 46. Kb6 {[%emt 0:00:54]} Rb1+ {[%emt 0:00:07]} 47. Kc7 {[%emt 0:00:15]} Kd5 1-0

[Event "CZE-tht Extraliga 2018-19"]
[Site "Czech Republic"]
[Date "2019.02.10"]
[Round "8.3"]
[White "Cernousek, Lukas"]
[Black "Mroziak, Maciej"]
[Result "1-0"]
[ECO "B01"]
[WhiteElo "2425"]
[BlackElo "2382"]
[Annotator "NA"]
[PlyCount "79"]
[EventDate "2018.11.03"]
[EventType "team-tourn"]
[EventCountry "CZE"]
[SourceTitle "playchess.com"]
[Source "ChessBase"]
[SourceQuality "1"]
[WhiteTeam "Siesta"]
[BlackTeam "Cesky Tesin"]
[TimeControl "40/5400+30:1800+30"]

1. e4 {[%emt 0:00:00]} d5 {[%emt 0:00:21]} 2. exd5 {[%emt 0:00:00]} Nf6 {[%emt 0:00:05]} 3. d4 {[%emt 0:01:17]} Bg4 {[%emt 0:00:07]} 4. Bb5+ {[%emt 0:00:56]} c6 {[%emt 0:03:10]} 5. dxc6 {[%emt 0:00:16]} Qa5+ {[%emt 0:02:01]} 6. Nc3 {[%emt 0:00:30]} Nxc6 {[%emt 0:00:31]} 7. Nge2 {[%emt 0:01:44]} O-O-O {[%emt 0:00:51]} 8. Bxc6 {[%emt 0:01:11]} bxc6 {[%emt 0:00:05]} 9. h3 {[%emt 0:00:18]} Bh5 {[%emt 0:08:55]} 10. Qd3 {[%emt 0:00:58]} e5 {[%emt 0:11:41]} 11. Qc4 {[%emt 0:42:22]} Bb4 {[%emt 0:53:37]} 12. dxe5 {[%emt 0:23:04]} Nd5 {[%emt 0:01:19]} 13. O-O {[%emt 0:01:46]} Nxc3 {[%emt 0:06:38]} 14. Nxc3 {[%emt 0:01:00]} Bxc3 {[%emt 0:00:51]} 15. Qxc6+ {[%emt 0:12:18]} Qc7 {[%emt 0:00:03]} 16. Qa6+ {[%emt 0:00:10]} Qb7 {[%emt 0:00:06]} 17. Qxb7+ {[%emt 0:00:17]} Kxb7 {[%emt 0:00:03]} 18. bxc3 {[%emt 0:00:03]} Bg6 {[%emt 0:00:34]} 19. Rb1+ {[%emt 0:00:26]} Kc6 {[%emt 0:00:15]} 20. Be3 {[%emt 0:01:16]} Bxc2 {[%emt 0:00:41]} 21. Rb2 {[%emt 0:00:13]} Bd3 {[%emt 0:00:05]} 22. Rd1 {[%emt 0:00:21]} Bc4 {[%emt 0:01:43]} 23. Rd4 {[%emt 0:06:09]} Rxd4 {[%emt 0:00:30]} 24. Bxd4 {[%emt 0:00:01]} a5 {[%emt 0:02:57]} 25. a4 {[%emt 0:01:31]} h5 {[%emt 0:02:29]} 26. f3 {[%emt 0:00:15]} Ra8 {[%emt 0:01:26]} 27. Kf2 {[%emt 0:00:04]} g6 {[%emt 0:00:58]} 28. Kg3 {[%emt 0:02:44]} Kc7 {[%emt 0:00:33]} 29. Kf4 {[%emt 0:00:21]} Rb8 {[%emt 0:00:09]} 30. Rxb8 {[%emt 0:02:41]} Kxb8 {[%emt 0:00:03]} 31. g4 {[%emt 0:00:44]} Kc7 {[%emt 0:01:04]} 32. Kg5 {[%emt 0:00:12]} Bb3 {[%emt 0:01:34]} 33. gxh5 {[%emt 0:00:30]} gxh5 {[%emt 0:00:03]} 34. f4 {[%emt 0:00:31]} Bxa4 {[%emt 0:00:39]} 35. Kxh5 {[%emt 0:00:33]} Bb3 {[%emt 0:00:47]} 36. Kg5 {[%emt 0:00:38]} a4 {[%emt 0:00:22]} 37. Bc5 {[%emt 0:00:21]} Kc6 {[%emt 0:00:35]} 38. Bb4 {[%emt 0:00:03]} Kd5 {[%emt 0:00:12]} 39. Kf6 {[%emt 0:00:56]} Ke4 {[%emt 0:00:30]} 40. f5 {[%emt 0:00:14]} 1-0

[Event "CZE-tht Extraliga 2018-19"]
[Site "Czech Republic"]
[Date "2019.02.10"]
[Round "8.3"]
[White "Jurcik, Martin"]
[Black "Blahynka, Martin"]
[Result "1/2-1/2"]
[ECO "C54"]
[WhiteElo "2346"]
[BlackElo "2426"]
[Annotator "NA"]
[PlyCount "88"]
[EventDate "2018.11.03"]
[EventType "team-tourn"]
[EventCountry "CZE"]
[SourceTitle "playchess.com"]
[Source "ChessBase"]
[SourceQuality "1"]
[WhiteTeam "Siesta B"]
[BlackTeam "Duras"]
[TimeControl "40/5400+30:1800+30"]

1. e4 {[%emt 0:00:00]} e5 {[%emt 0:00:00]} 2. Nf3 {[%emt 0:00:00]} Nc6 {[%emt 0:00:00]} 3. Bc4 {[%emt 0:00:34]} Bc5 {[%emt 0:00:00]} 4. c3 {[%emt 0:00:46]} Nf6 {[%emt 0:00:00]} 5. d3 {[%emt 0:00:57]} a6 {[%emt 0:03:16]} 6. a4 {[%emt 0:17:03]} O-O {[%emt 0:01:02]} 7. Bg5 {[%emt 0:03:08]} h6 {[%emt 0:01:10]} 8. Bh4 {[%emt 0:00:10]} d6 {[%emt 0:22:23]} 9. Nbd2 {[%emt 0:15:15]} Be6 {[%emt 0:07:23]} 10. O-O {[%emt 0:02:29]} Qe7 {[%emt 0:03:16]} 11. Re1 {[%emt 0:01:20]} Rab8 {[%emt 0:10:41]} 12. a5 {[%emt 0:06:16]} Bxc4 {[%emt 0:04:11]} 13. Nxc4 {[%emt 0:00:38]} Qe6 {[%emt 0:00:10]} 14. Ra4 {[%emt 0:07:15]} Ba7 {[%emt 0:24:42]} 15. d4 {[%emt 0:04:21]} exd4 {[%emt 0:03:34]} 16. cxd4 {[%emt 0:01:34]} d5 {[%emt 0:01:59]} 17. exd5 {[%emt 0:02:31]} Qxd5 {[%emt 0:00:04]} 18. Bxf6 {[%emt 0:00:39]} gxf6 {[%emt 0:00:04]} 19. Ne3 {[%emt 0:01:19]} Qh5 {[%emt 0:01:36]} 20. d5 {[%emt 0:03:30]} Ne5 {[%emt 0:01:49]} 21. Nxe5 {[%emt 0:01:13]} Qxd1 {[%emt 0:00:18]} 22. Rxd1 {[%emt 0:00:57]} fxe5 {[%emt 0:00:10]} 23. Nf5 {[%emt 0:12:39]} Rfd8 {[%emt 0:10:09]} 24. Rg4+ {[%emt 0:06:36]} Kf8 {[%emt 0:00:06]} 25. Nxh6 {[%emt 0:00:09]} Ke7 {[%emt 0:00:40]} 26. Rd3 {[%emt 0:02:26]} b6 {[%emt 0:02:47]} 27. Rc4 {[%emt 0:04:41]} bxa5 {[%emt 0:01:07]} 28. Rxc7+ {[%emt 0:03:18]} Rd7 {[%emt 0:00:06]} 29. Nf5+ {[%emt 0:00:07]} Kd8 {[%emt 0:00:13]} 30. Rxd7+ {[%emt 0:01:29]} Kxd7 {[%emt 0:00:05]} 31. Rd2 {[%emt 0:00:18]} Rb4 {[%emt 0:01:01]} 32. g3 {[%emt 0:00:13]} Bd4 {[%emt 0:00:39]} 33. Nxd4 {[%emt 0:01:33]} exd4 {[%emt 0:00:05]} 34. Kg2 {[%emt 0:00:41]} Kd6 {[%emt 0:00:05]} 35. Kf3 {[%emt 0:00:16]} Kxd5 {[%emt 0:00:05]} 36. Kf4 {[%emt 0:00:16]} a4 {[%emt 0:00:57]} 37. h4 {[%emt 0:00:16]} a3 {[%emt 0:01:14]} 38. bxa3 {[%emt 0:00:06]} Rb1 {[%emt 0:00:04]} 39. Rc2 {[%emt 0:01:59]} d3 {[%emt 0:00:20]} 40. Rc7 {[%emt 0:00:29]} Kd4 {[%emt 0:01:02]} 41. Rd7+ {[%emt 0:15:07]} Kc3 {[%emt 0:00:00]} 42. Rc7+ {[%emt 0:00:04]} Kd4 {[%emt 0:00:00]} 43. Rd7+ {[%emt 0:00:04]} Kc3 {[%emt 0:00:00]} 44. Rc7+ {[%emt 0:00:02]} Kd4 {[%emt 0:08:12] Ke4+ Ke5+} 1/2-1/2

[Event "CZE-tht Extraliga 2018-19"]
[Site "Czech Republic"]
[Date "2019.02.10"]
[Round "8.4"]
[White "Nayhebaver, Martin"]
[Black "Plat, Vojtech"]
[Result "1/2-1/2"]
[ECO "B45"]
[WhiteElo "2462"]
[BlackElo "2533"]
[Annotator "ChessBase"]
[PlyCount "77"]
[EventDate "2018.11.03"]
[EventType "team-tourn"]
[EventCountry "CZE"]
[SourceTitle "playchess.com"]
[Source "ChessBase"]
[SourceQuality "1"]
[WhiteTeam "Brno"]
[BlackTeam "Lysa nad Labem"]
[TimeControl "40/5400+30:1800+30"]

1. e4 {[%emt 0:00:00]} c5 {[%emt 0:00:00]} 2. Nf3 {[%emt 0:00:13]} Nc6 {[%emt 0:00:00]} 3. d4 {[%emt 0:00:37]} cxd4 {[%emt 0:00:02]} 4. Nxd4 {[%emt 0:00:04]} e6 {[%emt 0:00:17]} 5. Nc3 {[%emt 0:00:35]} d6 {[%emt 0:00:04]} 6. g4 {[%emt 0:01:29]} Be7 {[%emt 0:02:23]} 7. Be3 {[%emt 0:00:57]} a6 {[%emt 0:03:54]} 8. Qe2 {[%emt 0:01:58]} Bd7 {[%emt 0:00:12]} 9. O-O-O {[%emt 0:02:44]} b5 {[%emt 0:00:20]} 10. Nxc6 {[%emt 0:02:54]} Bxc6 {[%emt 0:00:09]} 11. Bd4 {[%emt 0:00:09]} Bf6 {[%emt 0:06:07]} 12. f4 {[%emt 0:24:25]} Bxd4 {[%emt 0:05:29]} 13. Rxd4 {[%emt 0:00:14]} Ne7 {[%emt 0:00:03]} 14. Bg2 {[%emt 0:02:44]} Qc7 {[%emt 0:00:41]} 15. Rhd1 {[%emt 0:01:57]} e5 {[%emt 0:06:54]} 16. R4d2 {[%emt 0:14:47]} b4 {[%emt 0:02:52]} 17. Nd5 {[%emt 0:01:23]} Bxd5 {[%emt 0:00:05]} 18. exd5 {[%emt 0:00:19]} Ng6 {[%emt 0:07:12]} 19. Rd4 {[%emt 0:05:15]} Qa5 {[%emt 0:01:35]} 20. Qc4 {[%emt 0:05:12]} O-O {[%emt 0:05:37]} 21. fxe5 {[%emt 0:00:41]} Nxe5 {[%emt 0:14:20]} 22. Qxb4 {[%emt 0:00:51]} Qxa2 {[%emt 0:01:03]} 23. Qa4 {[%emt 0:00:37]} Qxa4 {[%emt 0:00:05]} 24. Rxa4 {[%emt 0:00:04]} a5 {[%emt 0:02:20]} 25. Kd2 {[%emt 0:04:14]} f5 {[%emt 0:08:57]} 26. gxf5 {[%emt 0:01:15]} Rxf5 {[%emt 0:00:15]} 27. Rf1 {[%emt 0:01:09]} Rg5 {[%emt 0:00:19]} 28. Bh3 {[%emt 0:00:49]} g6 {[%emt 0:00:02]} 29. Rf2 {[%emt 0:12:23]} Kg7 {[%emt 0:00:25]} 30. Be6 {[%emt 0:00:12]} Rg1 {[%emt 0:03:43]} 31. b4 {[%emt 0:05:22]} Nc4+ {[%emt 0:04:06]} 32. Ke2 {[%emt 0:00:03]} Rc1 {[%emt 0:01:55]} 33. Rf7+ {[%emt 0:00:14]} Kh6 {[%emt 0:00:05]} 34. bxa5 {[%emt 0:00:33]} Rxc2+ {[%emt 0:00:08]} 35. Kd3 {[%emt 0:01:31]} Nb2+ {[%emt 0:00:04]} 36. Kxc2 {[%emt 0:00:05]} Nxa4 {[%emt 0:00:02]} 37. Rd7 {[%emt 0:03:08]} Rxa5 {[%emt 0:00:24]} 38. Rxd6 {[%emt 0:01:54]} Nc5 {[%emt 0:00:05]} 39. Rc6 {[%emt 0:05:39]} 1/2-1/2

[Event "CZE-tht Extraliga 2018-19"]
[Site "Czech Republic"]
[Date "2019.02.10"]
[Round "8.4"]
[White "Kraus, Tomas"]
[Black "Koziol, Kamil"]
[Result "1/2-1/2"]
[ECO "D04"]
[WhiteElo "2458"]
[BlackElo "2265"]
[Annotator "ChessBase"]
[PlyCount "132"]
[EventDate "2018.11.03"]
[EventType "team-tourn"]
[EventCountry "CZE"]
[SourceTitle "playchess.com"]
[Source "ChessBase"]
[SourceQuality "1"]
[WhiteTeam "Turnov"]
[BlackTeam "Ostrava"]
[TimeControl "40/5400+30:1800+30"]

1. d4 {[%emt 0:00:00]} Nf6 {[%emt 0:00:00]} 2. Nf3 {[%emt 0:00:08]} d5 {[%emt 0:00:10]} 3. e3 {[%emt 0:00:47]} c5 {[%emt 0:02:04]} 4. c4 {[%emt 0:05:18]} e6 {[%emt 0:02:33]} 5. a3 {[%emt 0:01:22]} a6 {[%emt 0:18:29]} 6. dxc5 {[%emt 0:03:49]} Bxc5 {[%emt 0:03:03]} 7. b4 {[%emt 0:02:08]} Be7 {[%emt 0:02:12]} 8. Nbd2 {[%emt 0:01:18]} O-O {[%emt 0:10:04]} 9. Bb2 {[%emt 0:00:14]} b6 {[%emt 0:05:45]} 10. Bd3 {[%emt 0:04:02]} Bb7 {[%emt 0:02:34]} 11. O-O {[%emt 0:01:11]} Nbd7 {[%emt 0:03:17]} 12. Qb1 {[%emt 0:14:54]} h6 {[%emt 0:04:38]} 13. Rd1 {[%emt 0:01:41]} Rc8 {[%emt 0:01:15]} 14. Qa2 {[%emt 0:03:34]} Qc7 {[%emt 0:06:10]} 15. Rac1 {[%emt 0:01:15]} Qb8 {[%emt 0:00:24]} 16. Qa1 {[%emt 0:03:50]} dxc4 {[%emt 0:05:14]} 17. Nxc4 {[%emt 0:05:06]} Rfd8 {[%emt 0:01:22]} 18. Nfe5 {[%emt 0:04:18]} b5 {[%emt 0:10:14]} 19. Na5 {[%emt 0:08:02]} Nxe5 {[%emt 0:01:36]} 20. Bxe5 {[%emt 0:00:57]} Qa8 {[%emt 0:00:33]} 21. Rxc8 {[%emt 0:02:32]} Rxc8 {[%emt 0:00:56]} 22. Nxb7 {[%emt 0:08:26]} Qxb7 {[%emt 0:00:06]} 23. Be2 {[%emt 0:00:16]} Qb6 {[%emt 0:04:56]} 24. Rc1 {[%emt 0:02:01]} Qd8 {[%emt 0:03:24]} 25. Rxc8 {[%emt 0:07:43]} Qxc8 {[%emt 0:00:05]} 26. Bf3 {[%emt 0:01:09]} Ne8 {[%emt 0:02:19]} 27. g3 {[%emt 0:05:37]} Bf6 {[%emt 0:05:51]} 28. Bxf6 {[%emt 0:02:02]} Nxf6 {[%emt 0:00:06]} 29. Kg2 {[%emt 0:01:23]} Qc7 {[%emt 0:00:46]} 30. a4 {[%emt 0:02:17]} Qc4 {[%emt 0:01:14]} 31. axb5 {[%emt 0:00:50]} Qxb5 {[%emt 0:00:48]} 32. Qc3 {[%emt 0:02:04]} Nd5 {[%emt 0:01:41]} 33. Qc8+ {[%emt 0:01:20]} Kh7 {[%emt 0:00:04]} 34. Qf8 {[%emt 0:01:13]} Qd7 {[%emt 0:01:53]} 35. h4 {[%emt 0:02:41]} Nc7 {[%emt 0:01:02]} 36. h5 {[%emt 0:01:02]} Qe8 {[%emt 0:00:36]} 37. Qd6 {[%emt 0:00:40]} Qc8 {[%emt 0:00:31]} 38. Be2 {[%emt 0:01:11]} Qb7+ {[%emt 0:00:30]} 39. Kg1 {[%emt 0:00:34]} Qc8 {[%emt 0:00:33]} 40. Qc6 {[%emt 0:00:34]} Qb8 {[%emt 0:00:27]} 41. Bd3+ {[%emt 0:04:37]} Kg8 {[%emt 0:02:58]} 42. e4 {[%emt 0:02:47]} Kh8 {[%emt 0:05:57]} 43. Bc4 {[%emt 0:02:45]} Kg8 {[%emt 0:04:00]} 44. Kg2 {[%emt 0:00:24]} Nb5 {[%emt 0:03:50]} 45. Qxa6 {[%emt 0:05:48]} Nd6 {[%emt 0:01:14]} 46. e5 {[%emt 0:04:35]} Nxc4 {[%emt 0:07:06]} 47. Qxc4 {[%emt 0:00:05]} Qa8+ {[%emt 0:00:14]} 48. f3 {[%emt 0:05:11]} Qa4 {[%emt 0:00:26]} 49. Kf2 {[%emt 0:00:41]} Qa7+ {[%emt 0:00:52]} 50. Ke2 {[%emt 0:01:05]} Qa1 {[%emt 0:00:16]} 51. f4 {[%emt 0:05:44]} Qh1 {[%emt 0:01:34]} 52. b5 {[%emt 0:01:36]} Qg2+ {[%emt 0:00:05]} 53. Kd1 {[%emt 0:00:10]} Qxg3 {[%emt 0:00:54]} 54. Qb4 {[%emt 0:00:30]} Qd3+ {[%emt 0:02:25]} 55. Kc1 {[%emt 0:00:05]} Qe3+ {[%emt 0:00:23]} 56. Kc2 {[%emt 0:00:06]} Qe2+ {[%emt 0:00:54]} 57. Kc3 {[%emt 0:01:07]} Qe1+ {[%emt 0:01:31]} 58. Kc4 {[%emt 0:00:45]} Qe4+ {[%emt 0:00:05]} 59. Kb3 {[%emt 0:00:49]} Qb1+ {[%emt 0:00:37]} 60. Ka4 {[%emt 0:00:27]} Qa1+ {[%emt 0:00:21]} 61. Qa3 {[%emt 0:00:45]} Qd4+ {[%emt 0:00:10]} 62. Qb4 {[%emt 0:00:38]} Qa1+ {[%emt 0:00:02]} 63. Kb3 {[%emt 0:00:33]} Qb1+ {[%emt 0:00:02]} 64. Kc4 {[%emt 0:00:18]} Qe4+ {[%emt 0:00:02]} 65. Kc3 {[%emt 0:00:05]} Qe1+ {[%emt 0:00:06]} 66. Kb3 {[%emt 0:01:05]} Qb1+ {[%emt 0:00:30]} 1/2-1/2

[Event "CZE-tht Extraliga 2018-19"]
[Site "Czech Republic"]
[Date "2019.02.10"]
[Round "8.4"]
[White "Blohberger, Felix"]
[Black "Vrbata, Zbynek"]
[Result "1-0"]
[ECO "A05"]
[WhiteElo "2451"]
[BlackElo "2344"]
[Annotator "ChessBase"]
[PlyCount "67"]
[EventDate "2018.11.03"]
[EventType "team-tourn"]
[EventCountry "CZE"]
[SourceTitle "playchess.com"]
[Source "ChessBase"]
[SourceQuality "1"]
[WhiteTeam "Duras"]
[BlackTeam "Siesta B"]
[TimeControl "40/5400+30:1800+30"]

1. Nf3 {[%emt 0:00:00]} Nf6 {[%emt 0:00:00]} 2. c4 {[%emt 0:00:18]} g6 {[%emt 0:00:01]} 3. b3 {[%emt 0:00:07]} Bg7 {[%emt 0:00:14]} 4. Bb2 {[%emt 0:00:05]} O-O {[%emt 0:00:21]} 5. Nc3 {[%emt 0:00:36]} c6 {[%emt 0:05:14]} 6. e3 {[%emt 0:02:01]} Re8 {[%emt 0:03:36]} 7. d4 {[%emt 0:00:06]} d5 {[%emt 0:02:27]} 8. Bd3 {[%emt 0:12:42]} Bg4 {[%emt 0:13:06]} 9. h3 {[%emt 0:03:23]} Bxf3 {[%emt 0:00:19]} 10. Qxf3 {[%emt 0:00:22]} e6 {[%emt 0:00:23]} 11. O-O {[%emt 0:04:59]} Nbd7 {[%emt 0:00:42]} 12. Rfd1 {[%emt 0:04:14]} Qe7 {[%emt 0:04:21]} 13. Bf1 {[%emt 0:01:12]} Rac8 {[%emt 0:08:06]} 14. Rac1 {[%emt 0:05:21]} Red8 {[%emt 0:01:28]} 15. a3 {[%emt 0:06:25]} h6 {[%emt 0:09:10]} 16. Qe2 {[%emt 0:11:55]} Qe8 {[%emt 0:09:22]} 17. g3 {[%emt 0:03:07]} dxc4 {[%emt 0:05:56]} 18. bxc4 {[%emt 0:01:01]} e5 {[%emt 0:01:51]} 19. Qc2 {[%emt 0:03:41]} exd4 {[%emt 0:10:25]} 20. exd4 {[%emt 0:00:17]} Nb6 {[%emt 0:03:10]} 21. a4 {[%emt 0:05:00]} Qe6 {[%emt 0:01:54]} 22. a5 {[%emt 0:01:13]} Na8 {[%emt 0:02:12]} 23. Na4 {[%emt 0:05:37]} b6 {[%emt 0:03:02]} 24. axb6 {[%emt 0:01:26]} axb6 {[%emt 0:00:11]} 25. Bg2 {[%emt 0:01:58]} b5 {[%emt 0:08:52]} 26. Nc5 {[%emt 0:02:49]} Qe7 {[%emt 0:00:06]} 27. Re1 {[%emt 0:06:27]} Qc7 {[%emt 0:00:43]} 28. cxb5 {[%emt 0:00:35]} cxb5 {[%emt 0:00:26]} 29. Qb3 {[%emt 0:00:22]} Qb6 {[%emt 0:04:08]} 30. Re7 {[%emt 0:01:55]} Rf8 {[%emt 0:00:07]} 31. Ne6 {[%emt 0:13:56]} Rxc1+ {[%emt 0:00:14]} 32. Bxc1 {[%emt 0:00:04]} Rc8 {[%emt 0:01:29]} 33. Nxg7 {[%emt 0:00:14]} Rxc1+ {[%emt 0:00:04]} 34. Bf1 {[%emt 0:00:36]} 1-0

[Event "CZE-tht Extraliga 2018-19"]
[Site "Czech Republic"]
[Date "2019.02.10"]
[Round "8.4"]
[White "Langner, Ladislav"]
[Black "Bernasek, Jan"]
[Result "0-1"]
[ECO "B12"]
[WhiteElo "2391"]
[BlackElo "2475"]
[Annotator "ChessBase"]
[PlyCount "70"]
[EventDate "2018.11.03"]
[EventType "team-tourn"]
[EventCountry "CZE"]
[SourceTitle "playchess.com"]
[Source "ChessBase"]
[SourceQuality "1"]
[WhiteTeam "Cesky Tesin"]
[BlackTeam "Siesta"]
[TimeControl "40/5400+30:1800+30"]

1. e4 {[%emt 0:00:56]} c6 {[%emt 0:00:00]} 2. d4 {[%emt 0:00:06]} d5 {[%emt 0:00:00]} 3. e5 {[%emt 0:00:13]} Bf5 {[%emt 0:00:02]} 4. Nd2 {[%emt 0:00:58]} e6 {[%emt 0:00:07]} 5. Nb3 {[%emt 0:00:20]} Nd7 {[%emt 0:00:08]} 6. Nf3 {[%emt 0:01:24]} Ne7 {[%emt 0:00:14]} 7. Be3 {[%emt 0:01:48]} Nc8 {[%emt 0:02:12]} 8. a4 {[%emt 0:04:35]} Be7 {[%emt 0:01:54]} 9. Be2 {[%emt 0:02:01]} a6 {[%emt 0:01:57]} 10. O-O {[%emt 0:00:31]} O-O {[%emt 0:00:13]} 11. Nfd2 {[%emt 0:04:56]} f6 {[%emt 0:07:27]} 12. f4 {[%emt 0:02:09]} fxe5 {[%emt 0:05:04]} 13. fxe5 {[%emt 0:00:48]} Qe8 {[%emt 0:05:49]} 14. c4 {[%emt 0:08:09]} dxc4 {[%emt 0:05:42]} 15. Bxc4 {[%emt 0:00:48]} Qg6 {[%emt 0:02:16]} 16. Na5 {[%emt 0:07:21]} Ncb6 {[%emt 0:04:45]} 17. Nxb7 {[%emt 0:09:27]} Nxc4 {[%emt 0:02:33]} 18. Nxc4 {[%emt 0:00:47]} Bd3 {[%emt 0:00:41]} 19. Rxf8+ {[%emt 0:01:01]} Rxf8 {[%emt 0:00:17]} 20. Nd2 {[%emt 0:01:56]} Nb6 {[%emt 0:05:31]} 21. Nc5 {[%emt 0:13:29]} Nd5 {[%emt 0:07:22]} 22. Qe1 {[%emt 0:00:03]} Rb8 {[%emt 0:11:16]} 23. Ra3 {[%emt 0:06:54]} Bxc5 {[%emt 0:02:01]} 24. dxc5 {[%emt 0:00:08]} Rxb2 {[%emt 0:00:53]} 25. Qh4 {[%emt 0:07:52]} Rb8 {[%emt 0:09:53]} 26. Qd4 {[%emt 0:05:04]} Bf5 {[%emt 0:01:33]} 27. Qc4 {[%emt 0:05:55]} a5 {[%emt 0:07:18]} 28. Rb3 {[%emt 0:00:59]} Rxb3 {[%emt 0:01:35]} 29. Qxb3 {[%emt 0:00:05]} Bh3 {[%emt 0:01:24]} 30. g3 {[%emt 0:01:58]} h6 {[%emt 0:01:10]} 31. Bd4 {[%emt 0:01:16]} Bf5 {[%emt 0:03:13]} 32. Qb7 {[%emt 0:03:43]} Qg4 {[%emt 0:00:22]} 33. Qb2 {[%emt 0:03:51]} Qd1+ {[%emt 0:02:03]} 34. Kf2 {[%emt 0:01:22]} Bd3 {[%emt 0:00:19]} 35. h4 {[%emt 0:01:47]} Qh1 {[%emt 0:00:36]} 0-1

[Event "CZE-tht Extraliga 2018-19"]
[Site "Czech Republic"]
[Date "2019.02.10"]
[Round "8.5"]
[White "Oral, Tomas"]
[Black "Blatny, Pavel"]
[Result "1-0"]
[ECO "C10"]
[WhiteElo "2510"]
[BlackElo "2337"]
[Annotator "ChessBase"]
[PlyCount "81"]
[EventDate "2018.11.03"]
[EventType "team-tourn"]
[EventCountry "CZE"]
[SourceTitle "playchess.com"]
[Source "ChessBase"]
[SourceQuality "1"]
[WhiteTeam "Lysa nad Labem"]
[BlackTeam "Brno"]
[TimeControl "40/5400+30:1800+30"]

1. e4 {[%emt 0:00:00]} e6 {[%emt 0:00:00]} 2. d4 {[%emt 0:00:14]} d5 {[%emt 0:00:00]} 3. Nd2 {[%emt 0:00:19]} dxe4 {[%emt 0:00:00]} 4. Nxe4 {[%emt 0:00:06]} Nd7 {[%emt 0:00:00]} 5. Nf3 {[%emt 0:05:33]} Ngf6 {[%emt 0:00:05]} 6. Nxf6+ {[%emt 0:00:18]} Nxf6 {[%emt 0:00:02]} 7. Bg5 {[%emt 0:00:09]} c5 {[%emt 0:05:42]} 8. Bc4 {[%emt 0:15:04]} a6 {[%emt 0:04:33]} 9. Qe2 {[%emt 0:04:02]} b5 {[%emt 0:07:29]} 10. Bd3 {[%emt 0:00:33]} Qa5+ {[%emt 0:00:23]} 11. c3 {[%emt 0:06:37]} cxd4 {[%emt 0:08:26]} 12. Bxf6 {[%emt 0:10:17]} gxf6 {[%emt 0:00:10]} 13. Nxd4 {[%emt 0:00:04]} b4 {[%emt 0:01:59]} 14. Be4 {[%emt 0:08:17]} bxc3 {[%emt 0:06:07]} 15. b4 {[%emt 0:01:18]} Qxb4 {[%emt 0:01:32]} 16. O-O {[%emt 0:20:53]} Qxd4 {[%emt 0:04:03]} 17. Rfd1 {[%emt 0:02:00]} Qc5 {[%emt 0:01:54]} 18. Bxa8 {[%emt 0:04:50]} Bh6 {[%emt 0:03:39]} 19. Qc2 {[%emt 0:02:34]} f5 {[%emt 0:04:25]} 20. Qa4+ {[%emt 0:00:58]} Kf8 {[%emt 0:00:18]} 21. Qh4 {[%emt 0:05:22]} Bd2 {[%emt 0:07:49]} 22. Rxd2 {[%emt 0:00:06]} cxd2 {[%emt 0:00:10]} 23. Qd8+ {[%emt 0:00:04]} Kg7 {[%emt 0:00:16]} 24. Qg5+ {[%emt 0:00:01]} Kf8 {[%emt 0:00:09]} 25. Qd8+ {[%emt 0:00:03]} Kg7 {[%emt 0:00:11]} 26. Qg5+ {[%emt 0:00:02]} Kf8 {[%emt 0:00:12]} 27. Qxd2 {[%emt 0:01:24]} Qa7 {[%emt 0:10:39]} 28. Qc3 {[%emt 0:02:40]} Qxa8 {[%emt 0:03:25]} 29. Qxh8+ {[%emt 0:00:05]} Ke7 {[%emt 0:00:06]} 30. Rc1 {[%emt 0:00:42]} Bb7 {[%emt 0:01:36]} 31. Rc7+ {[%emt 0:01:00]} Kd6 {[%emt 0:00:31]} 32. Qxa8 {[%emt 0:01:58]} Bxa8 {[%emt 0:00:01]} 33. Rxf7 {[%emt 0:02:03]} Bd5 {[%emt 0:00:17]} 34. a3 {[%emt 0:00:04]} h5 {[%emt 0:02:08]} 35. Rh7 {[%emt 0:00:06]} Kc5 {[%emt 0:00:19]} 36. Rxh5 {[%emt 0:00:24]} Kb5 {[%emt 0:00:29]} 37. Rh7 {[%emt 0:00:20]} Ka4 {[%emt 0:00:18]} 38. Ra7 {[%emt 0:00:11]} Bc4 {[%emt 0:00:07]} 39. h4 {[%emt 0:00:12]} f4 {[%emt 0:01:38]} 40. h5 {[%emt 0:00:11]} Bd3 {[%emt 0:00:09]} 41. h6 {[%emt 0:30:07]} 1-0